bitfinex/quotes_ETHUSD_20240719
["timestamp","ask_amount","ask_price","bid_price","bid_amount"]
[1721355059393,1.13167278,3421.9,3421.6,2.9226]
[1721355059394,1.047,3421.7,3421.6,2.9226]
[1721355059806,1.13154722,3421.7,3421.6,2.9226]
[1721355064140,0.08454722,3421.7,3421.6,5.8452]
[1721355064501,3.3677,3422.3,3422.0,2.92219]
[1721355064702,0.08476972,3422.2,3422.0,2.92219]
[1721355064942,3.3677,3422.3,3422.0,2.92219]
[1721355065246,1.13170679,3422.1,3422.0,2.92219]
[1721355065410,1.13170679,3422.1,3421.9,2.92234]
[1721355065411,1.047,3422.1,3421.9,2.92234]
[1721355065612,1.047,3422.0,3421.9,2.92234]
[1721355065807,1.13171882,3422.0,3421.9,2.92234]
[1721355068929,0.08471882,3422.0,3421.9,2.92234]
[1721355069128,3.346581,3422.8,3421.9,2.92234]
[1721355069129,4.11811616,3422.7,3421.9,1.047]
[1721355069312,0.424981,3422.8,3422.2,1.047]
[1721355069528,0.424981,3422.8,3422.1,2.3188]
[1721355069529,1.471981,3422.8,3422.6,2.92174]
[1721355069917,0.424981,3422.8,3422.6,2.92174]
[1721355070317,0.424981,3422.8,3422.7,5.24047]
[1721355070721,0.424981,3422.8,3422.7,2.92167]
[1721355072756,0.424981,3422.8,3422.7,5.84334]
[1721355077509,0.50691699,3422.8,3422.7,5.84334]
[1721355080123,0.424981,3422.8,3422.7,5.84334]
[1721355082728,0.50513699,3422.8,3422.7,5.84334]
[1721355082928,0.424981,3422.8,3422.7,5.84334]
[1721355085025,0.50523882,3422.8,3422.7,5.84334]
[1721355086640,0.50523882,3422.8,3422.3,2.92194]
[1721355086843,1.047,3422.5,3422.1,7.4]
[1721355087026,1.047,3422.3,3422.2,2.92208]
[1721355087246,1.12738842,3422.3,3422.2,2.92208]
[1721355087893,1.12738842,3422.3,3422.2,5.84417]
[1721355087894,0.08038842,3422.3,3422.2,5.84417]
[1721355088055,0.424981,3422.8,3422.2,5.26588]
[1721355088255,1.471981,3422.8,3422.7,2.92167]
[1721355088456,1.471981,3422.8,3422.6,2.92174]
[1721355088862,1.471981,3422.8,3422.7,2.92167]
[1721355089069,0.424981,3422.8,3422.7,2.92167]
[1721355091287,0.424981,3422.8,3422.7,5.84334]
[1721355092057,0.424981,3422.8,3422.7,8.15294]
[1721355092496,0.424981,3422.8,3422.7,5.84334]
[1721355110005,1.471981,3422.8,3422.3,2.92194]
[1721355110176,1.047,3422.5,3422.1,10.32217]
[1721355110382,1.047,3422.3,3422.2,2.92208]
[1721355110583,0.07985212,3422.4,3422.3,2.92201]
[1721355110902,1.047,3422.6,3422.3,2.92201]
[1721355111096,1.047,3422.6,3422.4,2.92192]
[1721355111402,0.424981,3422.8,3422.6,2.92175]
[1721355112269,0.424981,3422.8,3422.7,2.92167]
[1721355113994,0.424981,3422.8,3422.7,5.84334]
[1721355118172,0.424981,3422.8,3422.7,8.15024]
[1721355121079,0.424981,3422.8,3422.7,11.07191]
[1721355124800,0.424981,3422.8,3422.7,8.15024]
[1721355126413,1.471981,3422.8,3422.7,2.92167]
[1721355126585,1.471981,3422.8,3422.5,2.92181]
[1721355126911,3.375,3422.6,3422.3,2.92199]
[1721355127211,3.375,3422.6,3422.0,2.92221]
[1721355127212,1.047,3422.4,3422.0,2.92221]
[1721355127412,1.047,3422.1,3421.9,2.92229]
[1721355127998,1.047,3422.1,3421.7,2.92251]
[1721355128203,0.07993453,3422.0,3421.7,2.92251]
[1721355128405,1.047,3422.1,3421.8,2.92241]
[1721355128915,0.07987558,3422.0,3421.8,2.92241]
[1721355129609,1.047,3422.1,3421.8,2.92241]
[1721355130204,0.07976441,3422.0,3421.6,2.9226]
[1721355130503,1.047,3421.9,3421.6,2.9226]
[1721355130817,1.12674438,3421.9,3421.6,2.9226]
[1721355131019,0.07974438,3421.9,3421.4,10.32277]
[1721355131377,2.4771,3422.0,3421.6,2.92253]
[1721355131582,0.07969238,3421.9,3421.5,2.92266]
[1721355132118,1.12669238,3421.9,3421.5,2.92266]
[1721355132346,1.12669238,3421.9,3421.6,2.92258]
[1721355138638,1.48707162,3421.9,3421.6,2.92258]
[1721355139153,1.48707162,3421.9,3421.4,10.32277]
[1721355139324,1.047,3421.7,3421.4,10.32277]
[1721355139508,1.48707162,3421.9,3421.5,2.92268]
[1721355139725,0.0778177,3421.6,3421.5,2.92268]
[1721355139943,1.40737924,3421.9,3421.5,2.92268]
[1721355140142,0.07782843,3421.6,3421.5,2.92268]
[1721355140322,1.40737924,3421.9,3421.5,2.92268]
[1721355140647,1.40737924,3421.9,3421.2,2.92293]
[1721355140648,0.68067292,3421.8,3421.3,2.9228]
[1721355140825,0.75854142,3421.8,3421.4,2.92275]
[1721355143206,1.047,3421.7,3421.4,2.92275]
[1721355143411,0.07773449,3421.6,3421.2,2.92293]
[1721355143652,0.58654916,3421.6,3421.2,2.92293]
[1721355143838,1.047,3421.5,3421.2,2.92293]
[1721355144150,1.12466276,3421.5,3421.2,2.92293]
[1721355144333,1.12466276,3421.5,3421.0,2.9231]
[1721355144516,1.12466276,3421.5,3420.9,7.4]
[1721355144517,1.12466276,3421.5,3421.1,2.92303]
[1721355144941,1.047,3421.5,3421.1,2.92303]
[1721355145663,1.047,3421.5,3421.2,2.92294]
[1721355146017,1.047,3421.7,3421.2,2.92294]
[1721355146429,1.75970329,3421.7,3421.2,2.92294]
[1721355147716,1.75970329,3421.7,3421.0,2.92311]
[1721355147917,3.3903,3421.5,3421.0,2.92311]
[1721355148319,0.07658807,3421.4,3421.0,2.92311]
[1721355150719,1.047,3421.3,3421.0,2.92311]
[1721355150922,1.12362169,3421.3,3421.0,2.92311]
[1721355152267,0.07662169,3421.3,3421.1,2.92302]
[1721355152446,3.3903,3421.5,3421.1,2.92302]
[1721355152646,0.07651706,3421.2,3421.1,2.92302]
[1721355152956,1.047,3421.5,3421.2,2.92294]
[1721355153280,0.07656718,3421.4,3421.2,2.92294]
[1721355154843,1.047,3421.5,3421.2,2.92294]
[1721355155251,0.07656718,3421.4,3421.2,2.92294]
[1721355155933,0.07656718,3421.4,3421.0,2.92307]
[1721355157538,0.07656718,3421.4,3421.1,2.92303]
[1721355158181,0.07656718,3421.4,3421.2,2.9229]
[1721355158716,0.07656718,3421.4,3421.3,2.92286]
[1721355159200,0.07416736,3421.4,3421.3,2.92286]
[1721355159361,3.5295,3421.7,3421.3,2.92286]
[1721355159558,0.07420744,3421.6,3421.3,2.92286]
[1721355161593,0.49885944,3421.6,3421.3,2.92286]
[1721355162159,1.047,3421.5,3421.1,2.92303]
[1721355162462,1.047,3421.3,3421.1,2.92303]
[1721355162876,0.07412727,3421.2,3421.1,2.92303]
[1721355163275,1.047,3421.5,3421.1,2.92303]
[1721355163490,0.07412727,3421.2,3421.1,2.92303]
[1721355163717,1.047,3421.5,3421.1,2.92303]
[1721355164217,0.07416736,3421.4,3421.1,2.92303]
[1721355165511,0.07416736,3421.4,3421.2,2.92295]
[1721355168205,0.07416736,3421.4,3421.3,5.21186]
[1721355168543,0.424652,3421.6,3421.5,2.92269]
[1721355168716,0.424652,3421.6,3421.5,5.84538]
[1721355169832,0.424652,3421.6,3421.5,2.92269]
[1721355170544,1.471652,3421.6,3421.3,2.92283]
[1721355174497,0.424652,3421.6,3421.3,2.92283]
[1721355175111,0.424652,3421.6,3421.4,2.92277]
[1721355175307,0.424652,3421.6,3421.2,2.9229]
[1721355178952,0.424652,3421.6,3421.3,2.92286]
[1721355182313,1.471652,3421.6,3421.3,2.92286]
[1721355182519,0.07412752,3421.5,3421.3,2.92286]
[1721355183115,0.07412752,3421.5,3421.4,2.92278]
[1721355184645,0.07412752,3421.5,3421.2,2.92288]
[1721355184817,0.07412752,3421.5,3421.3,2.92286]
[1721355186261,0.07412752,3421.5,3421.3,2.92281]
[1721355186652,0.07412752,3421.5,3421.4,2.92278]
[1721355189970,0.07412752,3421.5,3421.1,2.923]
[1721355190467,0.07412752,3421.5,3421.3,2.92281]
[1721355192563,0.07412752,3421.5,3421.4,2.92278]
[1721355193828,0.07412752,3421.5,3421.3,2.92281]
[1721355198875,0.07412752,3421.5,3421.4,2.92278]
[1721355199175,0.07412752,3421.5,3421.4,5.90401378]
[1721355199385,0.07412752,3421.5,3421.4,8.23241378]
[1721355199588,0.424652,3421.6,3421.5,5.84538]
[1721355202939,0.424652,3421.6,3421.5,12.81507]
[1721355203142,0.424652,3421.6,3421.5,15.70787]
[1721355203366,0.424652,3421.6,3421.5,21.17118938]
[1721355203563,0.424652,3421.6,3421.5,21.77093342]
[1721355203791,0.424981,3422.8,3422.7,5.84334]
[1721355204166,0.49832265,3422.8,3422.7,5.84334]
[1721355204372,0.424981,3422.8,3422.7,5.84334]
[1721355206637,0.424981,3422.8,3422.5,2.3428]
[1721355206638,0.424981,3422.8,3422.5,2.92182]
[1721355206860,0.424981,3422.8,3422.6,2.92175]
[1721355206861,0.0733538,3422.7,3422.6,2.92175]
[1721355207068,1.471981,3422.8,3422.6,2.92175]
[1721355207385,0.07347727,3422.7,3422.6,2.92175]
[1721355207889,1.471981,3422.8,3422.6,2.92175]
[1721355208057,0.07344509,3422.7,3422.6,2.92175]
[1721355208258,1.471981,3422.8,3422.6,2.92175]
[1721355208456,0.07344509,3422.7,3422.6,2.92175]
[1721355208658,1.471981,3422.8,3422.6,2.92175]
[1721355208899,0.07344509,3422.7,3422.6,2.92175]
[1721355209394,1.471981,3422.8,3422.6,2.92175]
[1721355209756,0.07344509,3422.7,3422.6,2.92175]
[1721355210206,0.424981,3422.8,3422.6,2.92175]
[1721355210502,0.07344509,3422.7,3422.6,2.92175]
[1721355210851,0.424981,3422.8,3422.6,2.92175]
[1721355211052,0.07344509,3422.7,3422.6,2.92175]
[1721355211294,0.424981,3422.8,3422.6,2.92175]
[1721355211482,1.471981,3422.8,3422.6,2.92175]
[1721355211695,0.07344509,3422.7,3422.6,2.92175]
[1721355211989,1.471981,3422.8,3422.6,2.92175]
[1721355212357,0.07344509,3422.7,3422.6,2.92175]
[1721355212765,1.471981,3422.8,3422.6,2.92175]
[1721355213290,0.07344509,3422.7,3422.6,2.92175]
[1721355213696,1.471981,3422.8,3422.6,2.92175]
[1721355213883,1.471981,3422.8,3422.4,2.92192]
[1721355214080,0.07344509,3422.7,3422.4,2.92192]
[1721355214297,3.749181,3422.8,3422.2,2.92208]
[1721355214501,1.047,3422.6,3422.3,2.922]
[1721355214862,0.07337347,3422.5,3422.3,2.922]
[1721355215356,1.047,3422.4,3422.1,10.32213]
[1721355215575,1.047,3422.4,3422.1,7.4]
[1721355215987,0.07333341,3422.3,3422.1,7.4]
[1721355218664,2.2511,3422.2,3422.1,7.4]
[1721355218864,2.32443495,3422.2,3422.1,7.4]
[1721355219405,3.70857845,3422.2,3421.3,7.4]
[1721355219559,3.70857845,3422.2,3420.8,12.32]
[1721355219560,1.047,3421.4,3420.8,10.32328]
[1721355219761,1.047,3421.4,3420.6,2.2526]
[1721355219762,1.047,3421.2,3420.9,2.9232]
[1721355220061,0.07318825,3421.1,3420.9,2.9232]
[1721355220272,2.92275,3421.5,3420.9,2.9232]
[1721355220571,0.89646884,3421.4,3420.9,2.9232]
[1721355223096,0.89646884,3421.4,3421.3,2.92286]
[1721355223097,0.07326984,3421.4,3421.3,2.92286]
[1721355223411,2.92227,3422.0,3421.3,2.92286]
[1721355223594,0.07312275,3421.4,3421.3,2.92286]
[1721355224114,0.07312275,3421.4,3421.1,2.92301]
[1721355224408,2.92235,3421.9,3421.1,2.92301]
[1721355224612,0.0730276,3421.3,3420.9,2.92317]
[1721355224784,2.8026435,3422.2,3420.9,2.92317]
[1721355224785,2.4631,3421.7,3420.9,2.92317]
[1721355224981,2.92266,3421.6,3420.9,2.92317]
[1721355225295,0.07317075,3421.5,3420.9,2.92317]
[1721355225699,0.07317075,3421.5,3421.0,2.92311]
[1721355226007,2.4631,3421.7,3421.1,2.92302]
[1721355226186,0.07310475,3421.4,3421.1,2.92302]
[1721355226382,3.54528,3421.7,3421.1,2.92302]
[1721355226582,0.07308471,3421.3,3421.1,2.92302]
[1721355226782,6.46781,3421.7,3420.9,2.92317]
[1721355227125,0.07314482,3421.6,3420.9,2.92317]
[1721355227274,0.53135115,3421.6,3420.9,2.92317]
[1721355227475,0.53135115,3421.6,3420.8,2.92328]
[1721355227476,0.53135115,3421.6,3421.0,2.92308]
[1721355227790,1.52350427,3421.6,3421.0,2.92308]
[1721355228515,1.52350427,3421.6,3421.1,2.92303]
[1721355229511,0.53135115,3421.6,3421.2,2.92292]
[1721355230210,0.53135115,3421.6,3421.0,2.92311]
[1721355232803,0.53135115,3421.6,3421.1,2.92302]
[1721355234421,0.53135115,3421.6,3421.2,2.92294]
[1721355235718,0.53135115,3421.6,3421.5,2.92269]
[1721355239595,0.53135115,3421.6,3421.3,2.92285]
[1721355240336,0.53135115,3421.6,3421.4,2.92276]
[1721355241106,0.53135115,3421.6,3421.3,2.92285]
[1721355241931,0.53135115,3421.6,3421.4,2.92277]
[1721355242125,0.53135115,3421.6,3421.5,2.92269]
[1721355243615,0.53135115,3421.6,3421.3,2.92284]
[1721355244433,0.53135115,3421.6,3421.1,2.92301]
[1721355244434,0.53135115,3421.6,3421.5,2.92269]
[1721355253157,0.53135115,3421.6,3421.0,2.92306]
[1721355253361,1.047,3421.5,3421.0,2.92311]
[1721355253717,0.06983022,3421.4,3421.0,2.92311]
[1721355254963,0.06983022,3421.4,3421.1,2.92302]
[1721355255127,0.45820633,3421.6,3421.1,2.92302]
[1721355255308,0.06985026,3421.5,3421.3,2.92284]
[1721355255506,0.06985026,3421.5,3421.4,2.92278]
[1721355256735,0.06985026,3421.5,3421.4,5.84556]
[1721355257125,0.45820633,3421.6,3421.5,2.92269]
[1721355257713,0.52803936,3421.6,3421.5,2.92269]
[1721355258853,0.45820633,3421.6,3421.5,2.92269]
[1721355265156,0.5277842,3421.6,3421.5,2.92269]
[1721355266019,0.5277842,3421.6,3421.3,2.92281]
[1721355266219,0.5277842,3421.6,3421.4,2.92277]
[1721355267436,0.45820633,3421.6,3421.4,2.92277]
[1721355267826,0.06947786,3421.5,3421.4,2.92277]
[1721355270877,0.45820633,3421.6,3421.4,2.92277]
[1721355271170,0.06940401,3421.5,3421.4,2.92277]
[1721355271965,0.06940401,3421.5,3421.0,2.92306]
[1721355272639,0.06940401,3421.5,3420.9,7.4]
[1721355272983,0.06940401,3421.5,3421.1,2.92302]
[1721355274478,0.06940401,3421.5,3421.2,2.92294]
[1721355274645,0.06940401,3421.5,3421.4,2.92278]
[1721355278165,0.06940401,3421.5,3421.2,2.92294]
[1721355278881,0.06940401,3421.5,3421.3,2.92286]
[1721355279202,0.06940401,3421.5,3421.0,2.9231]
[1721355279795,0.06940401,3421.5,3421.1,2.92303]
[1721355282161,0.06940401,3421.5,3421.2,2.92293]
[1721355282734,0.06940401,3421.5,3421.3,2.3164]
[1721355282879,0.06940401,3421.5,3421.4,8.76834]
[1721355283081,0.06940401,3421.5,3421.4,14.17565221]
[1721355283285,0.45820633,3421.6,3421.5,11.18257]
[1721355283519,0.45820633,3421.6,3421.5,18.70226]
[1721355283833,0.424981,3422.8,3422.6,2.92173]
[1721355286422,0.424981,3422.8,3422.7,2.92167]
[1721355287606,0.48555594,3422.8,3422.7,2.92167]
[1721355288636,0.424981,3422.8,3422.7,5.84334]
[1721355295061,0.424981,3422.8,3422.7,8.17404]
[1721355299652,0.424981,3422.8,3422.7,11.09571]
[1721355299814,0.424981,3422.8,3422.7,14.09571]
[1721355301357,0.424981,3422.8,3422.7,17.01738]
[1721355302448,0.424981,3422.8,3422.7,17.56738]
[1721355302838,7.45,3424.1,3424.0,5.84112]
[1721355303026,0.0111283,3424.3,3424.1,2.9204]
[1721355303220,0.0111283,3424.3,3424.2,2.92039]
[1721355305048,0.0111283,3424.3,3423.9,2.92063]
[1721355305358,0.0111283,3424.3,3424.0,2.92051]
[1721355305856,0.0111283,3424.3,3423.9,2.92062]
[1721355307818,0.0111283,3424.3,3423.7,2.92081]
[1721355308221,2.2519,3424.2,3423.2,7.4]
[1721355308428,2.2519,3424.2,3423.6,2.92089]
[1721355309242,2.2519,3424.2,3423.4,2.92105]
[1721355309441,2.2519,3424.2,3423.7,2.92079]
[1721355310488,2.2519,3424.2,3423.5,2.92098]
[1721355310770,2.2519,3424.2,3423.3,5.92113]
[1721355310771,2.92054,3424.1,3423.4,2.92106]
[1721355310972,2.92054,3424.1,3423.2,2.92123]
[1721355310973,2.3813,3423.9,3423.2,2.92123]
[1721355311149,5.30195,3423.9,3423.2,2.92123]
[1721355311350,6.15203013,3423.9,3423.3,2.92113]
[1721355311882,6.15203013,3423.9,3422.9,2.92148]
[1721355311883,3.23138013,3423.9,3422.9,2.92148]
[1721355312063,2.4103,3423.0,3422.7,7.4]
[1721355312270,2.4103,3423.0,3422.1,10.32216]
[1721355312477,2.9216,3422.8,3422.1,10.32216]
[1721355312654,2.9216,3422.8,3422.1,7.4]
[1721355312856,4.9223,3423.0,3422.1,7.4]
[1721355312857,2.92192,3422.4,3422.1,7.4]
[1721355313193,2.92192,3422.4,3421.7,2.92251]
[1721355313343,2.92175,3422.6,3421.8,2.92243]
[1721355313745,2.92185,3422.5,3421.6,2.9226]
[1721355314312,2.92185,3422.5,3421.7,2.92252]
[1721355314484,3.584641,3422.5,3421.7,2.92252]
[1721355314682,3.584641,3422.5,3421.7,5.84504]
[1721355314909,3.584641,3422.5,3421.7,2.92252]
[1721355315066,2.92196,3422.4,3421.7,2.92252]
[1721355317293,2.92196,3422.4,3421.5,2.92268]
[1721355317502,0.05072602,3422.3,3421.5,2.92268]
[1721355317717,0.05072602,3422.3,3421.6,2.92257]
[1721355318019,0.05072602,3422.3,3421.7,2.92251]
[1721355318370,2.97273602,3422.3,3421.7,2.92251]
[1721355318613,0.70645372,3422.3,3421.4,2.92277]
[1721355318806,0.05072602,3422.3,3421.4,2.92277]
[1721355319014,0.78439,3422.7,3421.1,10.32296]
[1721355319015,2.92238,3421.9,3421.1,10.32296]
[1721355319319,2.92238,3421.9,3421.2,3.0]
[1721355319619,0.05057296,3421.8,3421.2,3.0]
[1721355320717,0.64008626,3421.8,3420.9,2.92319]
[1721355320871,2.97306296,3421.8,3421.0,2.92311]
[1721355322921,2.92253,3421.7,3421.0,2.92311]
[1721355323207,0.05043487,3421.6,3421.0,2.92311]
[1721355324072,2.97305487,3421.6,3420.8,2.92329]
[1721355324579,5.3996,3421.5,3420.5,10.4]
[1721355324806,0.0503948,3421.4,3420.6,3.0]
[1721355325184,5.3996,3421.5,3420.8,2.92323]
[1721355325185,2.4769,3421.5,3420.8,2.92323]
[1721355325389,2.97318884,3421.4,3420.7,2.92337]
[1721355325995,0.05036884,3421.4,3420.8,2.92326]
[1721355326189,0.05036884,3421.4,3420.6,5.92344]
[1721355326411,0.05036884,3421.4,3420.9,2.9232]
[1721355327298,0.05036884,3421.4,3420.7,2.92333]
[1721355327501,0.05036884,3421.4,3420.6,5.92344]
[1721355328991,0.05036884,3421.4,3420.8,2.92321]
[1721355329393,2.92293,3421.3,3420.6,3.0]
[1721355329710,0.05015505,3421.2,3420.6,5.92345]
[1721355330283,2.92293,3421.3,3420.6,5.92345]
[1721355330618,0.05016082,3421.2,3420.6,5.92345]
[1721355330818,5.3996,3421.5,3420.6,3.0]
[1721355331001,5.3996,3421.5,3420.7,2.92336]
[1721355331002,0.05016917,3421.4,3420.7,2.92336]
[1721355331391,2.97295917,3421.4,3420.7,2.92336]
[1721355331718,2.92288,3421.3,3420.5,5.92351]
[1721355332117,0.05012043,3421.2,3420.5,5.92351]
[1721355333403,0.05012043,3421.2,3420.6,2.92345]
[1721355333612,0.05012043,3421.2,3420.7,3.0]
[1721355336685,0.05012043,3421.2,3421.0,2.92306]
[1721355336999,0.05000289,3421.1,3421.0,2.92306]
[1721355337200,2.3945,3421.9,3421.0,0.292306]
[1721355337399,0.05012812,3421.8,3421.4,2.92271]
[1721355338918,0.05012812,3421.8,3421.5,0.05845148]
[1721355339213,0.05012812,3421.8,3421.7,5.84504]
[1721355339485,0.05012812,3421.8,3421.5,5.4884]
[1721355339486,2.2519,3422.8,3422.3,2.92198]
[1721355339651,2.2519,3422.8,3422.1,2.92214]
[1721355339652,0.22519,3422.7,3422.1,2.92214]
[1721355339837,0.0486838,3422.7,3422.2,2.92209]
[1721355340264,2.2519,3422.8,3422.2,2.92209]
[1721355340739,0.04709923,3422.7,3422.2,2.92209]
[1721355341137,2.2519,3422.8,3422.2,2.92209]
[1721355341550,0.04709923,3422.7,3422.2,2.92209]
[1721355341969,2.2519,3422.8,3422.2,2.92209]
[1721355342133,2.769242,3422.8,3421.8,2.92242]
[1721355342341,0.04690732,3422.7,3421.8,2.92242]
[1721355342571,2.96861732,3422.7,3421.8,2.92242]
[1721355342972,2.92177,3422.6,3421.8,2.92242]
[1721355343160,2.55890732,3422.7,3421.7,7.4]
[1721355343496,2.9221,3422.2,3421.7,7.4]
[1721355343803,2.92219,3422.1,3421.7,7.4]
[1721355343947,2.96914852,3422.1,3421.4,2.92277]
[1721355344644,0.04695852,3422.1,3421.5,2.92269]
[1721355345195,2.92193,3422.4,3421.7,2.92249]
[1721355345498,0.34439697,3422.3,3421.7,2.92249]
[1721355345650,0.39147038,3422.3,3421.7,2.92249]
[1721355346242,3.31349038,3422.3,3421.7,2.92249]
[1721355346980,2.9221,3422.2,3421.5,2.92269]
[1721355347181,3.54565904,3422.2,3421.5,2.92269]
[1721355347492,0.047046,3422.1,3421.5,2.92269]
[1721355347995,0.047046,3422.1,3421.6,2.9226]
[1721355351667,2.92197,3422.4,3421.6,2.9226]
[1721355351872,0.04695476,3422.0,3421.6,2.9226]
[1721355352107,2.92197,3422.4,3421.6,2.9226]
[1721355352282,0.04688974,3421.9,3421.6,2.9226]
[1721355352482,2.92202,3422.3,3421.6,2.9226]
[1721355352682,0.04686971,3421.8,3421.6,2.9226]
[1721355352897,2.92202,3422.3,3421.6,2.9226]
[1721355353098,0.04684968,3421.7,3421.6,2.9226]
[1721355353291,2.92202,3422.3,3421.6,2.9226]
[1721355353492,3.55861097,3422.3,3421.6,2.9226]
[1721355353696,0.04694983,3422.2,3421.6,2.9226]
[1721355354814,0.04694983,3422.2,3421.7,2.92251]
[1721355358203,0.04694983,3422.2,3421.8,2.92239]
[1721355358516,2.92215,3422.2,3421.5,2.92265]
[1721355358720,2.81754346,3423.1,3421.8,2.92239]
[1721355358721,0.04681558,3422.1,3421.8,2.92239]
[1721355358908,2.92183,3422.6,3421.9,2.92229]
[1721355359105,0.04667158,3422.0,3421.9,2.92229]
[1721355359310,2.92183,3422.6,3421.9,2.92229]
[1721355359520,0.0467433,3422.0,3421.9,2.92229]
[1721355359820,2.92183,3422.6,3422.0,2.92222]
[1721355360118,0.04683658,3422.5,3422.0,2.92222]
[1721355360490,2.2519,3422.8,3422.1,2.92217]
[1721355360691,0.04669836,3422.4,3422.1,2.92217]
[1721355360905,2.2519,3422.8,3422.3,2.92195]
[1721355361405,0.04684071,3422.7,3422.1,2.92217]
[1721355361726,2.96857071,3422.7,3421.9,2.92233]
[1721355363233,0.86104678,3422.7,3421.9,2.92233]
[1721355363404,0.04684071,3422.7,3422.1,2.92212]
[1721355363611,2.96851071,3422.7,3422.1,2.92212]
[1721355363826,2.96851071,3422.7,3421.9,2.92233]
[1721355364029,2.96851071,3422.7,3422.0,2.92226]
[1721355364425,2.92176,3422.6,3422.0,2.92226]
[1721355364628,2.92193,3422.4,3421.7,2.92249]
[1721355364830,0.04671565,3422.3,3421.7,2.92249]
[1721355365013,0.04671565,3422.3,3421.8,2.92243]
[1721355365515,0.04671565,3422.3,3421.4,3.0]
[1721355365715,0.04671565,3422.3,3422.0,2.92225]
[1721355365919,2.92176,3422.6,3422.0,2.92225]
[1721355366136,0.04664546,3422.2,3422.0,2.92225]
[1721355366305,2.92176,3422.6,3422.0,2.92225]
[1721355366506,0.04662543,3422.1,3422.0,2.92225]
[1721355366813,2.92176,3422.6,3422.0,2.92225]
[1721355367020,0.0467658,3422.5,3422.0,2.92225]
[1721355367626,5.21845,3423.2,3422.5,2.92181]
[1721355367829,3.4439368,3423.1,3422.5,2.92181]
[1721355369455,2.92141,3423.0,3422.3,2.92194]
[1721355369756,2.92141,3423.0,3422.4,2.92189]
[1721355369908,0.04686386,3422.9,3422.4,2.92189]
[1721355371734,2.96837386,3422.9,3421.9,10.32227]
[1721355371933,2.96837386,3422.9,3422.0,3.0]
[1721355372972,2.92164,3422.8,3422.1,2.92217]
[1721355373451,0.04523572,3422.7,3422.1,2.92217]
[1721355373748,5.29236,3422.6,3422.0,3.0]
[1721355374122,0.04518702,3422.5,3422.0,3.0]
[1721355375451,0.04518702,3422.5,3422.2,2.92203]
[1721355375638,2.92151,3422.9,3422.2,2.92203]
[1721355375833,0.04522548,3422.8,3422.3,2.922]
[1721355376279,0.04522548,3422.8,3422.4,2.92186]
[1721355376749,2.4216,3423.0,3422.4,2.92186]
[1721355376954,0.04521266,3422.7,3422.4,2.92186]
[1721355377149,2.4216,3423.0,3422.4,2.92186]
[1721355377675,0.04525992,3422.9,3422.4,2.92186]
[1721355381342,0.04525992,3422.9,3422.3,2.922]
[1721355381538,1.0599785,3422.9,3422.0,2.92223]
[1721355381767,2.92173,3422.7,3422.0,2.92223]
[1721355382182,0.04519344,3422.6,3422.0,2.92223]
[1721355382351,0.04519344,3422.6,3422.1,2.92216]
[1721355382865,5.34212,3422.4,3421.8,7.4]
[1721355383052,2.92207,3422.3,3421.8,7.4]
[1721355383254,0.0451703,3422.2,3421.7,2.92252]
[1721355383574,3.31540886,3422.6,3422.0,2.92226]
[1721355383742,0.04515027,3422.1,3422.0,2.92226]
[1721355383941,3.31540886,3422.6,3422.0,2.92226]
[1721355384178,0.04515027,3422.1,3422.0,2.92226]
[1721355384482,0.04508811,3422.1,3422.0,2.92226]
[1721355384987,2.92184,3422.5,3421.8,2.92238]
[1721355385138,0.04508811,3422.1,3421.7,2.92252]
[1721355385342,2.92193,3422.4,3421.8,2.92243]
[1721355385572,0.04503474,3422.0,3421.8,2.92243]
[1721355385776,3.48595789,3422.4,3421.8,2.92243]
[1721355385975,0.04497414,3421.9,3421.6,2.9226]
[1721355386179,2.92201,3422.3,3421.6,2.9226]
[1721355386483,0.86419833,3422.3,3421.7,2.92252]
[1721355386686,0.0449982,3422.2,3421.7,2.92252]
[1721355387488,0.0449982,3422.2,3421.8,2.92241]
[1721355387779,0.0449982,3422.2,3422.0,2.92223]
[1721355387995,3.31541886,3422.6,3422.0,2.92223]
[1721355388278,0.74804954,3422.5,3422.0,2.92223]
[1721355388487,0.7930253,3422.5,3422.0,2.92223]
[1721355388785,0.04497576,3422.5,3422.1,2.92217]
[1721355389311,5.24643,3422.7,3421.9,2.92229]
[1721355389312,0.04496871,3422.4,3421.9,2.92229]
[1721355389685,2.92176,3422.6,3421.9,2.92229]
[1721355390014,0.04494868,3422.3,3421.9,2.92229]
[1721355390232,3.92258622,3422.6,3421.9,2.92229]
[1721355390520,3.92258622,3422.6,3422.0,2.92226]
[1721355390681,0.0449293,3422.5,3422.0,2.92226]
[1721355391422,2.9667693,3422.5,3421.8,2.92243]
[1721355391626,3.35540555,3422.4,3421.9,2.92235]
[1721355391835,0.04486309,3422.3,3421.9,2.92235]
[1721355393353,0.04486309,3422.3,3421.5,2.92266]
[1721355393637,0.04486309,3422.3,3421.6,2.35424348]
[1721355393799,2.92168,3422.7,3421.9,2.92232]
[1721355394002,3.9235655,3422.7,3421.9,2.92232]
[1721355394344,0.04484067,3422.6,3422.0,2.92219]
[1721355395870,2.96660067,3422.6,3421.7,2.9225]
[1721355396030,2.92184,3422.5,3421.8,2.92238]
[1721355396231,0.04479033,3422.4,3421.8,2.92238]
[1721355397564,0.04479033,3422.4,3421.9,2.92233]
[1721355400068,0.04479033,3422.4,3421.7,2.92246]
[1721355400359,0.04479033,3422.4,3421.5,2.92266]
[1721355400360,2.2528,3422.3,3421.5,2.92266]
[1721355400562,2.92217,3422.2,3421.5,2.92266]
[1721355400768,2.96677974,3422.2,3421.5,2.92266]
[1721355402052,2.96677974,3422.2,3421.6,2.9226]
[1721355402549,0.04460974,3422.2,3421.7,2.92252]
[1721355403342,0.04460974,3422.2,3421.8,2.92243]